[Event "CZE-ch U16 Girls 2020"]
[Site "Kouty nad Desnou"]
[Date "2020.03.09"]
[Round "3.8"]
[White "Ruzickova, Ema"]
[Black "Maresova, Michaela"]
[Result "0-1"]
[ECO "B35"]
[WhiteElo "1409"]
[BlackElo "1422"]
[Annotator "NA RC"]
[PlyCount "101"]
[EventDate "2020.03.07"]
[EventCountry "CZE"]
[SourceTitle "playchess.com"]
[Source "ChessBase"]
[SourceQuality "1"]
[TimeControl "5400+30"]

1. e4 {[%emt 0:00:00]} c5 {[%emt 0:00:00]} 2. Nf3 {[%emt 0:00:00]} Nc6 {[%emt 0:00:00]} 3. d4 {[%emt 0:00:02]} cxd4 {[%emt 0:00:00]} 4. Nxd4 {[%emt 0:00:10]} g6 {[%emt 0:00:11]} 5. Nc3 {[%emt 0:01:07]} Bg7 {[%emt 0:00:12]} 6. Be3 {[%emt 0:01:04]} Nf6 {[%emt 0:00:13]} 7. Bc4 {[%emt 0:06:30]} O-O {[%emt 0:01:00]} 8. f3 {[%emt 0:01:33]} Qb6 {[%emt 0:02:54]} 9. Bb3 {[%emt 0:20:01]} Nxe4 {[%emt 0:33:20]} 10. fxe4 {[%emt 0:06:24]} Bxd4 {[%emt 0:03:32]} 11. Bxd4 {[%emt 0:03:23]} Qxd4 {[%emt 0:02:08]} 12. Qe2 {[%emt 0:02:26]} d6 {[%emt 0:10:46]} 13. g4 {[%emt 0:08:17]} Ne5 {[%emt 0:09:35]} 14. h3 {[%emt 0:03:55]} Qb6 {[%emt 0:09:58]} 15. O-O-O {[%emt 0:07:04]} Bd7 {[%emt 0:06:54]} 16. Kb1 {[%emt 0:04:34]} Bc6 {[%emt 0:08:03]} 17. Rhg1 {[%emt 0:08:30]} Qc7 {[%emt 0:04:46]} 18. h4 {[%emt 0:02:12]} h6 {[%emt 0:01:26]} 19. Nd5 {[%emt 0:03:31]} Bxd5 {[%emt 0:01:17]} 20. Bxd5 {[%emt 0:00:30]} Rac8 {[%emt 0:01:38]} 21. Bb3 {[%emt 0:02:04]} a6 {[%emt 0:01:22]} 22. Rdf1 {[%emt 0:01:43]} Qb6 {[%emt 0:00:58]} 23. Rg2 {[%emt 0:02:07]} Kg7 {[%emt 0:00:30]} 24. c3 {[%emt 0:00:58]} e6 {[%emt 0:00:34]} 25. Rgf2 {[%emt 0:01:01]} Qc7 {[%emt 0:00:33]} 26. Rf4 {[%emt 0:01:21]} Qb6 {[%emt 0:00:27]} 27. R1f2 {[%emt 0:02:19]} g5 {[%emt 0:00:36]} 28. Rf6 {[%emt 0:01:12]} Nd7 {[%emt 0:00:28]} 29. R6f3 {[%emt 0:00:55]} Ne5 {[%emt 0:00:18]} 30. Rg3 {[%emt 0:01:02]} Qc6 {[%emt 0:00:37]} 31. Rh2 {[%emt 0:02:19]} Rh8 {[%emt 0:00:34]} 32. Rgh3 {[%emt 0:02:42]} Rcd8 {[%emt 0:00:30]} 33. hxg5 {[%emt 0:01:42]} hxg5 {[%emt 0:00:25]} 34. Qe3 {[%emt 0:00:48]} Rxh3 {[%emt 0:00:37]} 35. Qxg5+ {[%emt 0:01:15]} Ng6 {[%emt 0:00:12]} 36. Rxh3 {[%emt 0:00:31]} Qxe4+ {[%emt 0:00:19]} 37. Bc2 {[%emt 0:00:53]} Qe1+ {[%emt 0:00:18]} 38. Qc1 {[%emt 0:00:07]} Qxc1+ {[%emt 0:00:22]} 39. Kxc1 {[%emt 0:00:04]} Rh8 {[%emt 0:00:29]} 40. Re3 {[%emt 0:00:00]} Ne5 {[%emt 0:00:00]} 41. Re4 {[%emt 0:00:00]} Rh2 {[%emt 0:00:00]} 42. Rb4 {[%emt 0:00:00]} b5 {[%emt 0:00:00]} 43. a4 {[%emt 0:00:00]} Nc6 {[%emt 0:00:00]} 44. Rb3 {[%emt 0:00:00]} bxa4 {[%emt 0:00:00]} 45. Rb6 {[%emt 0:00:00]} Ne5 {[%emt 0:00:00]} 46. Rxd6 {[%emt 0:00:00]} Rh1+ {[%emt 0:00:00]} 47. Bd1 {[%emt 0:00:00]} Nc4 {[%emt 0:00:00]} 48. Rxa6 {[%emt 0:00:00]} Nxb2 {[%emt 0:00:00]} 49. Kxb2 {[%emt 0:00:00]} Rxd1 {[%emt 0:00:00]} 50. Rxa4 {[%emt 0:00:00]} Rd7 {[%emt 0:00:00]} 51. c4 {[%emt 0:00:00]} 0-1

[Event "CZE-ch U16 Girls 2020"]
[Site "Kouty nad Desnou"]
[Date "2020.03.09"]
[Round "3.9"]
[White "Merinska, Julie"]
[Black "Saskova, Renata"]
[Result "1-0"]
[ECO "B20"]
[WhiteElo "1182"]
[BlackElo "1191"]
[Annotator "NA"]
[PlyCount "49"]
[EventDate "2020.03.07"]
[EventCountry "CZE"]
[SourceTitle "playchess.com"]
[Source "ChessBase"]
[SourceQuality "1"]
[TimeControl "5400+30"]

1. e4 {[%emt 0:00:00]} c5 {[%emt 0:00:00]} 2. f4 {[%emt 0:00:00]} d6 {[%emt 0:00:37]} 3. Nf3 {[%emt 0:00:23]} Nf6 {[%emt 0:02:13]} 4. d3 {[%emt 0:01:31]} e6 {[%emt 0:00:40]} 5. g3 {[%emt 0:02:05]} Nc6 {[%emt 0:02:48]} 6. Bg2 {[%emt 0:05:06]} Be7 {[%emt 0:04:46]} 7. Nbd2 {[%emt 0:04:59]} a6 {[%emt 0:06:13]} 8. a4 {[%emt 0:03:36]} b6 {[%emt 0:01:47]} 9. b3 {[%emt 0:03:09]} Bb7 {[%emt 0:01:58]} 10. Bb2 {[%emt 0:03:26]} d5 {[%emt 0:05:24]} 11. e5 {[%emt 0:04:21]} Nd7 {[%emt 0:00:42]} 12. d4 {[%emt 0:06:14]} f6 {[%emt 0:07:35]} 13. O-O {[%emt 0:05:44]} O-O {[%emt 0:21:00]} 14. Kh1 {[%emt 0:03:06]} Re8 {[%emt 0:01:20]} 15. Qe2 {[%emt 0:07:31]} Qc7 {[%emt 0:10:03]} 16. Bh3 {[%emt 0:05:25]} f5 {[%emt 0:05:01]} 17. g4 {[%emt 0:03:47]} cxd4 {[%emt 0:05:56]} 18. Nxd4 {[%emt 0:09:32]} Nxd4 {[%emt 0:01:29]} 19. Bxd4 {[%emt 0:00:50]} g6 {[%emt 0:02:02]} 20. gxf5 {[%emt 0:04:18]} exf5 {[%emt 0:00:51]} 21. Rg1 {[%emt 0:06:16]} Rf8 {[%emt 0:04:34]} 22. Qh5 {[%emt 0:05:46]} Qxc2 {[%emt 0:03:38]} 23. Rxg6+ {[%emt 0:02:05]} hxg6 {[%emt 0:03:36]} 24. Qxg6+ {[%emt 0:00:24]} Kh8 {[%emt 0:00:23]} 25. Qh5+ {[%emt 0:00:35]} 1-0

[Event "CZE-ch U16 Girls 2020"]
[Site "Kouty nad Desnou"]
[Date "2020.03.09"]
[Round "4.1"]
[White "Vavrinkova, Anna"]
[Black "Dvorakova, Olga"]
[Result "1/2-1/2"]
[ECO "C62"]
[WhiteElo "1622"]
[BlackElo "1793"]
[Annotator "NA"]
[PlyCount "61"]
[EventDate "2020.03.07"]
[EventCountry "CZE"]
[SourceTitle "playchess.com"]
[Source "ChessBase"]
[SourceQuality "1"]
[TimeControl "5400+30"]

1. e4 {[%emt 0:00:10]} e5 {[%emt 0:00:01]} 2. Nf3 {[%emt 0:00:40]} Nc6 {[%emt 0:00:25]} 3. Bb5 {[%emt 0:00:40]} d6 {[%emt 0:00:27]} 4. d4 {[%emt 0:01:43]} exd4 {[%emt 0:00:15]} 5. Nxd4 {[%emt 0:00:54]} Bd7 {[%emt 0:00:15]} 6. O-O {[%emt 0:03:10]} Nf6 {[%emt 0:01:02]} 7. Bg5 {[%emt 0:01:29]} Be7 {[%emt 0:00:13]} 8. Re1 {[%emt 0:03:27]} O-O {[%emt 0:00:45]} 9. Bxc6 {[%emt 0:00:17]} bxc6 {[%emt 0:02:11]} 10. c3 {[%emt 0:03:27]} h6 {[%emt 0:02:48]} 11. Bh4 {[%emt 0:01:11]} Nh7 {[%emt 0:05:39]} 12. Bxe7 {[%emt 0:01:24]} Qxe7 {[%emt 0:00:02]} 13. Nd2 {[%emt 0:01:22]} Rfe8 {[%emt 0:05:12]} 14. f4 {[%emt 0:03:22]} c5 {[%emt 0:02:50]} 15. Ne2 {[%emt 0:03:02]} Qf6 {[%emt 0:08:35]} 16. Rf1 {[%emt 0:05:01]} Bb5 {[%emt 0:08:26]} 17. c4 {[%emt 0:04:05]} Bc6 {[%emt 0:02:15]} 18. Qc2 {[%emt 0:00:53]} Rab8 {[%emt 0:00:55]} 19. b3 {[%emt 0:00:59]} Qg6 {[%emt 0:03:47]} 20. Nc3 {[%emt 0:03:09]} f5 {[%emt 0:11:05]} 21. Rae1 {[%emt 0:03:22]} Nf6 {[%emt 0:04:06]} 22. Rf2 {[%emt 0:09:16]} fxe4 {[%emt 0:15:28]} 23. Rfe2 {[%emt 0:04:05]} Qg4 {[%emt 0:03:14]} 24. g3 {[%emt 0:03:01]} Re6 {[%emt 0:06:19]} 25. Nf1 {[%emt 0:10:34]} Rbe8 {[%emt 0:05:00]} 26. Ne3 {[%emt 0:00:07]} Qh3 {[%emt 0:01:47]} 27. Ncd5 {[%emt 0:01:07]} Bxd5 {[%emt 0:03:33]} 28. Nxd5 {[%emt 0:01:12]} Nxd5 {[%emt 0:03:28]} 29. cxd5 {[%emt 0:00:09]} R6e7 {[%emt 0:01:06]} 30. Rxe4 {[%emt 0:00:53]} Rxe4 {[%emt 0:00:25]} 31. Rxe4 {[%emt 0:01:17]} 1/2-1/2

[Event "CZE-ch U16 Girls 2020"]
[Site "Kouty nad Desnou"]
[Date "2020.03.09"]
[Round "4.2"]
[White "Stastna, Martina"]
[Black "Dudova, Pavlina"]
[Result "1/2-1/2"]
[ECO "B22"]
[WhiteElo "1700"]
[BlackElo "1499"]
[Annotator "NA"]
[PlyCount "74"]
[EventDate "2020.03.07"]
[EventCountry "CZE"]
[SourceTitle "playchess.com"]
[Source "ChessBase"]
[SourceQuality "1"]
[TimeControl "5400+30"]

1. e4 {[%emt 0:00:00]} e6 {[%emt 0:00:00]} 2. d4 {[%emt 0:00:00]} d5 {[%emt 0:00:00]} 3. Nd2 {[%emt 0:00:29]} c5 {[%emt 0:00:47]} 4. c3 {[%emt 0:01:12]} Nc6 {[%emt 0:03:01]} 5. exd5 {[%emt 0:02:54]} exd5 {[%emt 0:01:11]} 6. Ngf3 {[%emt 0:04:17]} cxd4 {[%emt 0:06:06]} 7. cxd4 {[%emt 0:01:48]} Bd6 {[%emt 0:02:36]} 8. Be2 {[%emt 0:03:30]} Nge7 {[%emt 0:01:20]} 9. O-O {[%emt 0:03:15]} O-O {[%emt 0:01:03]} 10. Re1 {[%emt 0:01:20]} Bf5 {[%emt 0:04:40]} 11. Nf1 {[%emt 0:05:22]} Rc8 {[%emt 0:09:13]} 12. Ng3 {[%emt 0:02:44]} Bxg3 {[%emt 0:16:49]} 13. hxg3 {[%emt 0:02:19]} Nb4 {[%emt 0:03:21]} 14. g4 {[%emt 0:19:55]} Bg6 {[%emt 0:08:50]} 15. Qb3 {[%emt 0:15:13]} Nc2 {[%emt 0:05:27]} 16. Bf4 {[%emt 0:02:39]} Nxa1 {[%emt 0:05:59]} 17. Rxa1 {[%emt 0:01:14]} Qb6 {[%emt 0:03:01]} 18. Qxb6 {[%emt 0:03:34]} axb6 {[%emt 0:00:07]} 19. Bb5 {[%emt 0:00:08]} Nc6 {[%emt 0:01:35]} 20. Bd6 {[%emt 0:00:52]} Rfd8 {[%emt 0:01:32]} 21. Bg3 {[%emt 0:00:37]} Be4 {[%emt 0:01:29]} 22. Rd1 {[%emt 0:01:59]} f6 {[%emt 0:03:16]} 23. Nh4 {[%emt 0:02:15]} Na7 {[%emt 0:04:58]} 24. Bd3 {[%emt 0:02:45]} Bxd3 {[%emt 0:01:36]} 25. Rxd3 {[%emt 0:00:09]} Re8 {[%emt 0:01:52]} 26. Rb3 {[%emt 0:03:04]} Rc6 {[%emt 0:04:48]} 27. Nf5 {[%emt 0:02:02]} Re1+ {[%emt 0:01:50]} 28. Kh2 {[%emt 0:00:10]} Nc8 {[%emt 0:00:52]} 29. Rb5 {[%emt 0:02:05]} Rcc1 {[%emt 0:03:10]} 30. Bf4 {[%emt 0:01:18]} Rc2 {[%emt 0:02:06]} 31. Rxd5 {[%emt 0:01:16]} Ree2 {[%emt 0:01:44]} 32. Bg3 {[%emt 0:01:30]} g6 {[%emt 0:01:08]} 33. Ne3 {[%emt 0:00:59]} Rc1 {[%emt 0:00:27]} 34. Rd8+ {[%emt 0:02:48]} Kg7 {[%emt 0:00:12]} 35. Rd7+ {[%emt 0:00:06]} Kg8 {[%emt 0:00:16]} 36. Rd8+ {[%emt 0:00:23]} Kg7 {[%emt 0:00:15]} 37. Rd7+ {[%emt 0:00:07]} Kg8 {[%emt 0:00:10]} 1/2-1/2

[Event "CZE-ch U16 Girls 2020"]
[Site "Kouty nad Desnou"]
[Date "2020.03.09"]
[Round "4.3"]
[White "Strnadova, Monika"]
[Black "Leksova, Sona"]
[Result "1/2-1/2"]
[ECO "B01"]
[WhiteElo "1514"]
[BlackElo "1645"]
[Annotator "NA"]
[PlyCount "82"]
[EventDate "2020.03.07"]
[EventCountry "CZE"]
[SourceTitle "playchess.com"]
[Source "ChessBase"]
[SourceQuality "1"]
[TimeControl "5400+30"]

1. e4 {[%emt 0:00:00]} d5 {[%emt 0:00:12]} 2. exd5 {[%emt 0:00:08]} Qxd5 {[%emt 0:00:08]} 3. Nc3 {[%emt 0:00:34]} Qa5 {[%emt 0:00:32]} 4. Nf3 {[%emt 0:00:49]} c6 {[%emt 0:00:42]} 5. d4 {[%emt 0:02:26]} Nf6 {[%emt 0:01:00]} 6. Bd2 {[%emt 0:00:53]} Bg4 {[%emt 0:01:22]} 7. Bc4 {[%emt 0:04:05]} Nbd7 {[%emt 0:04:50]} 8. Nd5 {[%emt 0:03:46]} Qd8 {[%emt 0:00:50]} 9. Nxf6+ {[%emt 0:00:18]} Nxf6 {[%emt 0:01:00]} 10. Ne5 {[%emt 0:02:53]} Be6 {[%emt 0:02:37]} 11. Bxe6 {[%emt 0:01:39]} fxe6 {[%emt 0:00:32]} 12. Bg5 {[%emt 0:00:48]} g6 {[%emt 0:03:04]} 13. O-O {[%emt 0:00:30]} Bg7 {[%emt 0:00:28]} 14. c3 {[%emt 0:00:59]} Ne4 {[%emt 0:03:25]} 15. Be3 {[%emt 0:02:19]} O-O {[%emt 0:01:26]} 16. Qg4 {[%emt 0:00:44]} Bxe5 {[%emt 0:01:23]} 17. dxe5 {[%emt 0:02:39]} Qd5 {[%emt 0:02:50]} 18. Bh6 {[%emt 0:01:52]} Rf7 {[%emt 0:02:07]} 19. Qe2 {[%emt 0:05:54]} Nc5 {[%emt 0:05:51]} 20. Rfd1 {[%emt 0:03:04]} Qe4 {[%emt 0:00:31]} 21. Qxe4 {[%emt 0:00:24]} Nxe4 {[%emt 0:00:11]} 22. Be3 {[%emt 0:00:34]} b6 {[%emt 0:05:52]} 23. Rd7 {[%emt 0:01:45]} Nc5 {[%emt 0:01:04]} 24. Bxc5 {[%emt 0:00:32]} bxc5 {[%emt 0:00:10]} 25. Rc7 {[%emt 0:00:08]} Rb8 {[%emt 0:01:18]} 26. b3 {[%emt 0:00:22]} a5 {[%emt 0:00:14]} 27. Rxc6 {[%emt 0:00:28]} a4 {[%emt 0:00:44]} 28. bxa4 {[%emt 0:01:35]} Rb2 {[%emt 0:00:39]} 29. f3 {[%emt 0:00:16]} g5 {[%emt 0:00:08]} 30. g3 {[%emt 0:00:43]} Rxf3 {[%emt 0:00:39]} 31. Rf1 {[%emt 0:00:57]} Rxc3 {[%emt 0:00:14]} 32. Rc8+ {[%emt 0:01:55]} Kg7 {[%emt 0:00:15]} 33. Rcf8 {[%emt 0:00:52]} Rcc2 {[%emt 0:05:02]} 34. R8f2 {[%emt 0:05:55]} Rxa2 {[%emt 0:00:54]} 35. Rxc2 {[%emt 0:01:17]} Rxc2 {[%emt 0:00:13]} 36. Ra1 {[%emt 0:00:05]} Rb2 {[%emt 0:00:12]} 37. Rc1 {[%emt 0:05:44]} Ra2 {[%emt 0:00:45]} 38. Rc4 {[%emt 0:01:15]} Kf7 {[%emt 0:02:03]} 39. g4 {[%emt 0:03:12]} Ke8 {[%emt 0:02:02]} 40. Rxc5 {[%emt 0:02:32]} Rxa4 {[%emt 0:00:27]} 41. h3 {[%emt 0:00:13]} Ra2 {[%emt 0:01:34]} 1/2-1/2

[Event "CZE-ch U16 Girls 2020"]
[Site "Kouty nad Desnou"]
[Date "2020.03.09"]
[Round "4.4"]
[White "Gregurkova, Nikola"]
[Black "Semova, Lada"]
[Result "1-0"]
[ECO "B18"]
[WhiteElo "1642"]
[BlackElo "1477"]
[Annotator "NA"]
[PlyCount "99"]
[EventDate "2020.03.07"]
[EventCountry "CZE"]
[SourceTitle "playchess.com"]
[Source "ChessBase"]
[SourceQuality "1"]
[TimeControl "5400+30"]

1. e4 {[%emt 0:00:00]} c6 {[%emt 0:00:00]} 2. d4 {[%emt 0:00:00]} d5 {[%emt 0:00:00]} 3. Nc3 {[%emt 0:00:10]} dxe4 {[%emt 0:00:00]} 4. Nxe4 {[%emt 0:01:01]} Bf5 {[%emt 0:00:00]} 5. Ng3 {[%emt 0:00:42]} Bg6 {[%emt 0:00:05]} 6. Nh3 {[%emt 0:01:38]} Nf6 {[%emt 0:00:10]} 7. Nf4 {[%emt 0:01:01]} e5 {[%emt 0:00:10]} 8. Nxg6 {[%emt 0:04:02]} hxg6 {[%emt 0:00:06]} 9. dxe5 {[%emt 0:02:01]} Qa5+ {[%emt 0:00:06]} 10. Bd2 {[%emt 0:13:14]} Qxe5+ {[%emt 0:00:06]} 11. Qe2 {[%emt 0:01:04]} Nbd7 {[%emt 0:00:07]} 12. Qxe5+ {[%emt 0:15:10]} Nxe5 {[%emt 0:00:00]} 13. Bc3 {[%emt 0:02:43]} Ned7 {[%emt 0:12:38]} 14. Bc4 {[%emt 0:12:35]} Nb6 {[%emt 0:00:49]} 15. Bb3 {[%emt 0:01:26]} Nbd5 {[%emt 0:00:20]} 16. Bxf6 {[%emt 0:05:21]} gxf6 {[%emt 0:01:32]} 17. Bxd5 {[%emt 0:02:54]} cxd5 {[%emt 0:00:04]} 18. Rd1 {[%emt 0:00:59]} O-O-O {[%emt 0:00:58]} 19. O-O {[%emt 0:01:24]} Bc5 {[%emt 0:03:42]} 20. Rd3 {[%emt 0:04:14]} Rh4 {[%emt 0:05:16]} 21. Rfd1 {[%emt 0:13:48]} Rf4 {[%emt 0:02:23]} 22. R1d2 {[%emt 0:01:40]} Kc7 {[%emt 0:11:25]} 23. Nf1 {[%emt 0:05:37]} Kc6 {[%emt 0:11:25]} 24. Ne3 {[%emt 0:04:55]} d4 {[%emt 0:04:46]} 25. Nf1 {[%emt 0:03:15]} Rh8 {[%emt 0:03:35]} 26. h3 {[%emt 0:00:39]} f5 {[%emt 0:07:16]} 27. Nh2 {[%emt 0:00:44]} Re4 {[%emt 0:10:48]} 28. Nf3 {[%emt 0:00:41]} Rhe8 {[%emt 0:13:07]} 29. Nxd4+ {[%emt 0:00:51]} Bxd4 {[%emt 0:00:06]} 30. Rxd4 {[%emt 0:00:06]} Rxd4 {[%emt 0:01:10]} 31. Rxd4 {[%emt 0:00:03]} Re1+ {[%emt 0:00:24]} 32. Kh2 {[%emt 0:00:06]} Re2 {[%emt 0:00:03]} 33. Rc4+ {[%emt 0:00:42]} Kd6 {[%emt 0:11:56]} 34. Kg3 {[%emt 0:00:50]} g5 {[%emt 0:00:43]} 35. Kf3 {[%emt 0:00:52]} Re1 {[%emt 0:00:35]} 36. a4 {[%emt 0:00:51]} a6 {[%emt 0:01:25]} 37. b3 {[%emt 0:00:29]} b5 {[%emt 0:00:39]} 38. axb5 {[%emt 0:00:24]} axb5 {[%emt 0:00:02]} 39. Rc8 {[%emt 0:00:27]} Re5 {[%emt 0:00:55]} 40. Rc3 {[%emt 0:00:46]} b4 {[%emt 0:00:29]} 41. Rc4 {[%emt 0:00:27]} Rb5 {[%emt 0:00:23]} 42. g3 {[%emt 0:00:00]} Ke5 {[%emt 0:00:00]} 43. Ke3 {[%emt 0:00:00]} Rb6 {[%emt 0:00:00]} 44. Rc5+ {[%emt 0:00:00]} Kf6 {[%emt 0:00:00]} 45. Rc4 {[%emt 0:00:00]} Ke5 {[%emt 0:00:00]} 46. Kf3 {[%emt 0:00:00]} Rb5 {[%emt 0:00:00]} 47. h4 {[%emt 0:00:00]} g4+ {[%emt 0:00:00]} 48. Ke3 {[%emt 0:00:00]} Rb6 {[%emt 0:00:00]} 49. Rc5+ {[%emt 0:00:00]} Kf6 {[%emt 0:00:00]} 50. Kf4 {[%emt 0:00:00]} 1-0

[Event "CZE-ch U16 Girls 2020"]
[Site "Kouty nad Desnou"]
[Date "2020.03.09"]
[Round "4.5"]
[White "Habinova, Alice"]
[Black "Vsetulova, Viktorie"]
[Result "0-1"]
[ECO "B01"]
[WhiteElo "1474"]
[BlackElo "1334"]
[Annotator "NA"]
[PlyCount "58"]
[EventDate "2020.03.07"]
[EventCountry "CZE"]
[SourceTitle "playchess.com"]
[Source "ChessBase"]
[SourceQuality "1"]
[TimeControl "5400+30"]

1. e4 {[%emt 0:00:00]} d5 {[%emt 0:00:00]} 2. exd5 {[%emt 0:00:00]} Nf6 {[%emt 0:00:00]} 3. Bb5+ {[%emt 0:00:00]} Bd7 {[%emt 0:00:00]} 4. Bc4 {[%emt 0:00:32]} Bg4 {[%emt 0:00:00]} 5. f3 {[%emt 0:00:36]} Bf5 {[%emt 0:00:05]} 6. Nc3 {[%emt 0:00:33]} Nbd7 {[%emt 0:00:51]} 7. Nge2 {[%emt 0:00:57]} Nb6 {[%emt 0:00:46]} 8. Bb3 {[%emt 0:00:56]} Nbxd5 {[%emt 0:00:54]} 9. d4 {[%emt 0:03:05]} e6 {[%emt 0:03:37]} 10. O-O {[%emt 0:02:05]} Be7 {[%emt 0:02:38]} 11. Bd2 {[%emt 0:03:29]} O-O {[%emt 0:01:47]} 12. Ng3 {[%emt 0:02:29]} Bg6 {[%emt 0:02:54]} 13. Nce4 {[%emt 0:03:27]} c6 {[%emt 0:04:09]} 14. Qe2 {[%emt 0:05:02]} Qc7 {[%emt 0:05:35]} 15. Rad1 {[%emt 0:05:54]} c5 {[%emt 0:07:51]} 16. c3 {[%emt 0:03:33]} Rfd8 {[%emt 0:04:07]} 17. f4 {[%emt 0:03:13]} Nxe4 {[%emt 0:10:02]} 18. Nxe4 {[%emt 0:02:08]} Nf6 {[%emt 0:00:25]} 19. Nxf6+ {[%emt 0:09:28]} Bxf6 {[%emt 0:00:10]} 20. dxc5 {[%emt 0:02:30]} Bd3 {[%emt 0:02:05]} 21. Qf3 {[%emt 0:04:38]} Bxf1 {[%emt 0:00:39]} 22. Kxf1 {[%emt 0:01:49]} Rd7 {[%emt 0:04:46]} 23. f5 {[%emt 0:04:52]} exf5 {[%emt 0:03:36]} 24. Qxf5 {[%emt 0:03:04]} Rad8 {[%emt 0:01:24]} 25. Qf2 {[%emt 0:08:22]} Qxh2 {[%emt 0:04:39]} 26. Ba4 {[%emt 0:05:32]} Qh1+ {[%emt 0:02:14]} 27. Ke2 {[%emt 0:00:42]} Re7+ {[%emt 0:00:18]} 28. Be3 {[%emt 0:02:21]} Rxd1 {[%emt 0:00:38]} 29. Bxd1 {[%emt 0:00:21]} Bg5 {[%emt 0:00:27]} 0-1

[Event "CZE-ch U16 Girls 2020"]
[Site "Kouty nad Desnou"]
[Date "2020.03.09"]
[Round "4.6"]
[White "Maresova, Michaela"]
[Black "Merinska, Julie"]
[Result "1-0"]
[ECO "C41"]
[WhiteElo "1422"]
[BlackElo "1182"]
[Annotator "NA"]
[PlyCount "83"]
[EventDate "2020.03.07"]
[EventCountry "CZE"]
[SourceTitle "playchess.com"]
[Source "ChessBase"]
[SourceQuality "1"]
[TimeControl "5400+30"]

1. e4 {[%emt 0:00:00]} e5 {[%emt 0:00:00]} 2. d4 {[%emt 0:00:01]} exd4 {[%emt 0:00:01]} 3. Nf3 {[%emt 0:00:12]} d6 {[%emt 0:03:09]} 4. Nxd4 {[%emt 0:02:45]} Nf6 {[%emt 0:00:52]} 5. Nc3 {[%emt 0:04:33]} g6 {[%emt 0:01:19]} 6. h3 {[%emt 0:04:11]} h5 {[%emt 0:03:44]} 7. Bg5 {[%emt 0:03:56]} Be7 {[%emt 0:02:38]} 8. Nf3 {[%emt 0:04:56]} Be6 {[%emt 0:08:38]} 9. e5 {[%emt 0:10:33]} Nfd7 {[%emt 0:05:38]} 10. Bxe7 {[%emt 0:02:54]} Qxe7 {[%emt 0:01:05]} 11. exd6 {[%emt 0:01:28]} cxd6 {[%emt 0:03:17]} 12. Be2 {[%emt 0:04:16]} Nc6 {[%emt 0:01:18]} 13. Nb5 {[%emt 0:12:30]} O-O {[%emt 0:04:15]} 14. Qxd6 {[%emt 0:06:46]} Qxd6 {[%emt 0:00:59]} 15. Nxd6 {[%emt 0:00:15]} b6 {[%emt 0:01:28]} 16. a3 {[%emt 0:05:21]} Nf6 {[%emt 0:01:11]} 17. Nb5 {[%emt 0:05:02]} Rad8 {[%emt 0:01:11]} 18. O-O {[%emt 0:01:30]} Nd5 {[%emt 0:02:11]} 19. Rfe1 {[%emt 0:07:09]} Nf4 {[%emt 0:03:26]} 20. Nc3 {[%emt 0:02:34]} Nxe2+ {[%emt 0:01:12]} 21. Nxe2 {[%emt 0:01:43]} Rfe8 {[%emt 0:00:53]} 22. Nf4 {[%emt 0:08:31]} Bf5 {[%emt 0:01:29]} 23. Rxe8+ {[%emt 0:02:21]} Rxe8 {[%emt 0:00:19]} 24. Re1 {[%emt 0:01:22]} Rd8 {[%emt 0:00:29]} 25. c3 {[%emt 0:01:27]} Kf8 {[%emt 0:02:08]} 26. Re2 {[%emt 0:03:01]} a5 {[%emt 0:03:37]} 27. Rd2 {[%emt 0:00:54]} Re8 {[%emt 0:00:31]} 28. Nd4 {[%emt 0:01:06]} Ne7 {[%emt 0:00:52]} 29. Nxf5 {[%emt 0:00:48]} Nxf5 {[%emt 0:00:07]} 30. Kh2 {[%emt 0:02:10]} Rc8 {[%emt 0:01:27]} 31. g4 {[%emt 0:00:29]} hxg4 {[%emt 0:00:51]} 32. hxg4 {[%emt 0:00:36]} Ne7 {[%emt 0:00:30]} 33. Rd3 {[%emt 0:00:30]} Nc6 {[%emt 0:00:30]} 34. Nd5 {[%emt 0:00:30]} b5 {[%emt 0:00:59]} 35. Nf4 {[%emt 0:00:29]} Ne5 {[%emt 0:00:53]} 36. Rg3 {[%emt 0:00:34]} Rd8 {[%emt 0:00:17]} 37. b3 {[%emt 0:00:32]} Rd2 {[%emt 0:01:12]} 38. Kg2 {[%emt 0:00:27]} g5 {[%emt 0:02:23]} 39. Nh3 {[%emt 0:00:26]} f6 {[%emt 0:00:32]} 40. Ng1 {[%emt 0:00:30]} Kf7 {[%emt 0:02:01]} 41. Nf3 {[%emt 0:00:23]} Nd3 {[%emt 0:01:13]} 42. Nxd2 {[%emt 0:00:25]} 1-0

[Event "CZE-ch U16 Girls 2020"]
[Site "Kouty nad Desnou"]
[Date "2020.03.09"]
[Round "4.7"]
[White "Londinova,, Jasmina Marie"]
[Black "Vlachynska, Lilian"]
[Result "1/2-1/2"]
[ECO "C50"]
[WhiteElo "1224"]
[BlackElo "1224"]
[Annotator "NA"]
[PlyCount "23"]
[EventDate "2020.03.07"]
[EventCountry "CZE"]
[SourceTitle "playchess.com"]
[Source "ChessBase"]
[SourceQuality "1"]
[TimeControl "5400+30"]

1. e4 {[%emt 0:00:00]} e5 {[%emt 0:00:00]} 2. Nf3 {[%emt 0:00:00]} Nc6 {[%emt 0:00:00]} 3. Bc4 {[%emt 0:00:13]} Nf6 {[%emt 0:00:00]} 4. d3 {[%emt 0:00:27]} Bc5 {[%emt 0:00:13]} 5. O-O {[%emt 0:00:37]} d6 {[%emt 0:00:09]} 6. Nc3 {[%emt 0:00:51]} Bg4 {[%emt 0:00:21]} 7. Be3 {[%emt 0:00:51]} Bb6 {[%emt 0:00:12]} 8. h3 {[%emt 0:01:48]} Bh5 {[%emt 0:00:12]} 9. Nd5 {[%emt 0:01:27]} Nxd5 {[%emt 0:01:36]} 10. Bxd5 {[%emt 0:00:24]} Qd7 {[%emt 0:01:43]} 11. c3 {[%emt 0:00:56]} O-O {[%emt 0:02:31]} 12. a3 1/2-1/2

[Event "CZE-ch U16 Girls 2020"]
[Site "Kouty nad Desnou"]
[Date "2020.03.09"]
[Round "4.7"]
[White "Vlachynska, Lilian"]
[Black "Vlachynska, Lilian"]
[Result "*"]
[ECO "C50"]
[WhiteElo "1224"]
[BlackElo "1224"]
[Annotator "NA"]
[PlyCount "22"]
[EventDate "2020.03.07"]
[EventCountry "CZE"]
[SourceTitle "playchess.com"]
[Source "ChessBase"]
[SourceQuality "1"]
[TimeControl "5400+30"]

1. e4 {[%emt 0:00:00]} e5 {[%emt 0:00:00]} 2. Nf3 {[%emt 0:00:00]} Nc6 {[%emt 0:00:00]} 3. Bc4 {[%emt 0:00:13]} Nf6 {[%emt 0:00:00]} 4. d3 {[%emt 0:00:27]} Bc5 {[%emt 0:00:13]} 5. O-O {[%emt 0:00:37]} d6 {[%emt 0:00:09]} 6. Nc3 {[%emt 0:00:51]} Bg4 {[%emt 0:00:21]} 7. Be3 {[%emt 0:00:51]} Bb6 {[%emt 0:00:12]} 8. h3 {[%emt 0:01:48]} Bh5 {[%emt 0:00:12]} 9. Nd5 {[%emt 0:01:27]} Nxd5 {[%emt 0:01:36]} 10. Bxd5 {[%emt 0:00:24]} Qd7 {[%emt 0:01:43]} 11. c3 {[%emt 0:00:56]} O-O {[%emt 0:02:31]} *